bitfinex/quotes_BTCUSD_20251120
["timestamp","ask_amount","ask_price","bid_price","bid_amount"]
[1763650420527,0.0038,90993.0,90991.0,0.23079128]
[1763650420734,0.02337889,91001.0,90995.0,0.01098961]
[1763650420735,0.01239,91001.0,90995.0,0.01098961]
[1763650420949,0.0038,91000.0,90997.0,0.2307754]
[1763650421166,0.0038,91000.0,90999.0,0.21978263]
[1763650421381,0.0038,91000.0,90992.0,0.01098997]
[1763650421382,0.01239,91011.0,91009.0,0.2197567]
[1763650421620,0.01098514,91032.0,91018.0,0.01098683]
[1763650421841,0.0038,91025.0,91024.0,0.01649993]
[1763650422068,0.02491,91034.0,91024.0,0.01649993]
[1763650422069,0.02491,91034.0,91025.0,0.21971985]
[1763650422271,0.02491,91034.0,91028.0,0.01098563]
[1763650422477,0.01098406,91041.0,91028.0,0.01098563]
[1763650422478,0.02746015,91041.0,91031.0,0.01098526]
[1763650422684,0.02746015,91041.0,91028.0,0.01098563]
[1763650422685,0.02132496,91040.0,91028.0,0.01098563]
[1763650422901,0.21969036,91038.0,91033.0,0.21969999]
[1763650423109,0.23068798,91033.0,91024.0,0.01649993]
[1763650423280,0.01239,91029.0,91024.0,0.01649993]
[1763650423513,0.02491,91039.0,91030.0,0.01098538]
[1763650423514,0.02746166,91036.0,91030.0,0.01098538]
[1763650423718,0.21969572,91035.0,91024.0,0.01649993]
[1763650423921,0.02559487,91034.0,91029.0,0.23069393]
[1763650424140,0.02746075,91039.0,91036.0,0.23067553]
[1763650424415,0.01098321,91048.0,91038.0,0.01649993]
[1763650424621,0.03125834,91047.0,91039.0,0.02748423]
[1763650424826,0.03896744,91050.0,91049.0,0.21966194]
[1763650425036,0.0038,91050.0,91047.0,0.01098333]
[1763650425210,0.0038,91050.0,91039.0,0.02748423]
[1763650425449,0.21966914,91047.0,91041.0,0.01098406]
[1763650425659,0.22346194,91050.0,91040.0,0.21968365]
[1763650425860,0.02297255,91049.0,91041.0,0.01098406]
[1763650426066,0.21967283,91045.0,91039.0,0.01649993]
[1763650426271,0.21967641,91043.0,91039.0,0.01649993]
[1763650426401,0.21968272,91041.0,91039.0,0.01649993]
[1763650426610,0.21968316,91041.0,91039.0,0.01649993]
[1763650426831,0.01098237,91055.0,91043.0,0.01098382]
[1763650427032,0.21967763,91043.0,91039.0,0.01649993]
[1763650427289,0.21969042,91038.0,91027.0,0.01098575]
[1763650427490,0.03126136,91037.0,91027.0,0.15838575]
[1763650427637,0.03126136,91037.0,91027.0,0.1474]
[1763650427837,0.21971153,91029.0,91027.0,0.1474]
[1763650428157,0.02491,91036.0,91029.0,0.01098551]
[1763650428364,0.21969966,91034.0,91029.0,0.230694]
[1763650428562,0.02491,91036.0,91027.0,0.23069879]
[1763650428563,0.2197088,91030.0,91027.0,0.23069879]
[1763650428916,0.02491,91036.0,91034.0,0.21969708]
[1763650429037,0.0038,91037.0,91034.0,0.0109849]
[1763650429241,0.21967777,91043.0,91037.0,0.01098454]
[1763650429435,0.0038,91042.0,91040.0,0.21968281]
[1763650429636,0.0038,91042.0,91038.0,0.01649993]
[1763650429637,0.03589406,91041.0,91021.0,0.01098647]
[1763650429880,0.21970537,91031.0,91027.0,0.01098575]
[1763650430199,0.03589406,91041.0,91029.0,0.01098551]
[1763650430200,0.02491,91041.0,91029.0,0.01098551]
[1763650430392,0.21970308,91033.0,91030.0,0.01649993]
[1763650430599,0.21969765,91035.0,91030.0,0.02748531]
[1763650430920,0.0038,91042.0,91030.0,0.02748531]
[1763650430921,0.0038,91042.0,91033.0,0.01098502]
[1763650431094,0.21969901,91034.0,91030.0,0.21970566]
[1763650431313,0.0038,91042.0,91031.0,0.23068979]
[1763650431314,0.21968848,91038.0,91031.0,0.23068979]
[1763650431474,0.02746136,91037.0,91035.0,0.21969488]
[1763650431678,0.02746136,91037.0,91034.0,0.23068049]
[1763650431679,0.0038,91042.0,91040.0,0.21968248]
[1763650431915,0.01815348,91044.0,91041.0,0.02748399]
[1763650432115,0.00376,91043.0,91041.0,0.01649993]
[1763650432485,0.21969245,91037.0,91034.0,0.0109849]
[1763650432677,0.21968938,91038.0,91028.0,0.01098563]
[1763650432879,0.02746136,91037.0,91034.0,0.0109849]
[1763650433181,0.21969671,91035.0,91031.0,0.01098526]
[1763650433382,0.2197074,91031.0,91027.0,0.23070077]
[1763650433668,0.02746347,91030.0,91026.0,0.01649993]
[1763650433818,0.21971327,91028.0,91026.0,0.01649993]
[1763650434000,0.02746437,91027.0,91026.0,0.01649993]
[1763650434200,0.27208939,91027.0,91026.0,0.01649993]
[1763650434409,0.02491,91027.0,91026.0,0.01649993]
[1763650434609,0.00376,91032.0,91030.0,0.21970677]
[1763650434810,0.00376,91032.0,91026.0,0.01649993]
[1763650434993,0.00376,91032.0,91029.0,0.01098551]
[1763650435445,0.00376,91032.0,91030.0,0.21970654]
[1763650436059,0.00376,91032.0,91030.0,0.15170654]
[1763650436263,0.00376,91032.0,91026.0,0.0274858]
[1763650436463,0.00376,91032.0,91031.0,0.21970537]
[1763650436668,0.22346486,91032.0,91028.0,0.01098563]
[1763650436876,0.00376,91032.0,91028.0,0.01098563]
[1763650437080,0.00376,91032.0,91031.0,0.21970537]
[1763650437734,0.00376,91032.0,91023.0,0.01098623]
[1763650437907,0.00376,91032.0,91031.0,0.21970537]
[1763650439432,0.00376,91032.0,91027.0,0.1474]
[1763650439638,0.21970638,91031.0,91027.0,0.1474]
[1763650439849,0.22346474,91032.0,91027.0,0.1474]
[1763650439850,0.00376,91032.0,91029.0,0.23069564]
[1763650440204,0.00376,91032.0,91029.0,0.01098551]
[1763650440457,0.00376,91032.0,91031.0,0.21970537]
[1763650440683,0.00376,91032.0,91029.0,0.01098551]
[1763650440684,0.01098152,91062.0,91030.0,0.1474]
[1763650440857,0.01098309,91049.0,91040.0,0.01649993]
[1763650441061,0.00376,91050.0,91048.0,0.21966435]
[1763650441214,0.02846182,91064.0,91048.0,0.23064756]
[1763650441215,0.21965503,91052.0,91048.0,0.23064756]
[1763650441419,0.00376,91059.0,91040.0,0.01649993]
[1763650441420,0.01098309,91049.0,91040.0,0.01649993]
[1763650441618,0.21968124,91041.0,91040.0,0.01649993]
[1763650441818,0.0154,91041.0,91029.0,0.01098551]
[1763650442024,0.0154,91032.0,91020.0,0.56566958]
[1763650442258,0.02847,91027.0,91022.0,0.23071254]
[1763650442459,0.02847,91027.0,91021.0,0.01098647]
[1763650442664,0.01662,91017.0,90975.0,0.07815058]
[1763650442899,0.21974399,91015.0,91014.0,0.01649993]
[1763650443110,0.00376,91016.0,91014.0,0.01649993]
[1763650443314,0.01185,91027.0,91015.0,0.21974399]
[1763650443455,0.01185,91034.0,91031.0,0.01098526]
[1763650443681,0.01185,91034.0,91021.0,0.01098647]
[1763650443682,0.01185,91016.0,91000.0,0.13901]
[1763650443891,0.23159399,91015.0,91004.0,0.01098852]
[1763650444101,0.01185,91015.0,91010.0,0.0109878]
[1763650444306,0.01185,91015.0,91005.0,0.01649993]
[1763650444307,0.01185,91022.0,91020.0,0.21973109]
[1763650444522,0.323,91044.0,91031.0,0.21970537]
[1763650444523,0.02678888,91043.0,91031.0,0.21970537]
[1763650444742,0.323,91044.0,91040.0,0.23066656]
[1763650444743,0.00376,91042.0,91040.0,0.23066656]
[1763650444952,0.00376,91042.0,91037.0,0.01098454]
[1763650444953,0.04008,91041.0,91037.0,0.23067303]
[1763650445165,0.25976124,91041.0,91040.0,0.01649993]
[1763650445364,0.00376,91042.0,91041.0,0.21968124]
[1763650445589,0.00376,91042.0,91040.0,0.01649993]
[1763650445798,0.00376,91044.0,91040.0,0.01649993]
[1763650446016,0.21968124,91041.0,91040.0,0.01649993]
[1763650446234,0.01098575,91027.0,91004.0,0.01098852]
[1763650446441,0.21976572,91006.0,91000.0,0.13901]
[1763650446649,0.00376,91014.0,91011.0,0.01098768]
[1763650446911,0.00376,91018.0,91014.0,0.01098732]
[1763650447117,0.00376,91018.0,91011.0,0.01098768]
[1763650447343,0.00376,91018.0,91016.0,0.21974032]
[1763650447956,0.02346,91029.0,91013.0,0.21974121]
[1763650447957,0.01185,91030.0,91021.0,0.01098647]
[1763650448167,0.01185,91030.0,91028.0,0.21971237]
[1763650448380,0.02346,91060.0,91055.0,0.21964746]
[1763650448596,0.21965442,91053.0,91045.0,0.01098357]
[1763650448800,0.01239,91056.0,91048.0,0.01098321]
[1763650449016,0.01239,91056.0,91055.0,0.21964746]
[1763650449249,0.01185,91065.0,91061.0,0.01098164]
[1763650449493,0.21962002,91067.0,91058.0,0.01098201]
[1763650449696,0.22337382,91069.0,91058.0,0.01098201]
[1763650449904,0.00376,91069.0,91062.0,0.21962973]
[1763650450113,0.21962314,91066.0,91059.0,0.01098189]
[1763650450321,0.00376,91069.0,91057.0,0.21964233]
[1763650450322,0.02346,91063.0,91057.0,0.01098213]
[1763650450533,0.02346,91063.0,91055.0,0.01649993]
[1763650450534,0.21964391,91057.0,91055.0,0.01649993]
[1763650450763,0.21967977,91042.0,91027.0,0.07815058]
[1763650450986,0.03121563,91056.0,91024.0,0.01098611]
[1763650450987,0.03844421,91041.0,91024.0,0.01098611]
[1763650451179,0.00376,91043.0,91038.0,0.02196282]
[1763650451180,0.02076024,91043.0,91038.0,0.02196282]
[1763650451411,0.21968387,91040.0,91038.0,0.02196282]
[1763650451619,0.21968438,91040.0,91038.0,0.02196282]
[1763650451826,0.21968542,91040.0,91038.0,0.02196282]
[1763650452056,0.21968554,91040.0,91038.0,0.02196282]
[1763650452261,0.21966255,91049.0,91042.0,0.01098394]
[1763650452461,0.21966315,91049.0,91044.0,0.23065598]
[1763650452707,0.00376,91052.0,91048.0,0.23064483]
[1763650452912,0.00376,91052.0,91023.0,0.08191058]
[1763650452913,0.00355182,91064.0,91062.0,0.21963058]
[1763650453138,0.00355182,91064.0,91063.0,0.02196282]
[1763650453551,0.0109814,91063.0,91052.0,0.02196282]
[1763650453759,0.02745382,91062.0,91035.0,0.21969449]
[1763650453964,0.01098285,91051.0,91039.0,0.21968476]
[1763650454170,0.21967281,91045.0,91034.0,0.0109849]
[1763650454367,0.01098273,91052.0,91037.0,0.01098454]
[1763650454615,0.0109843,91039.0,91017.0,0.01098695]
[1763650454815,0.01098502,91033.0,91011.0,0.01098768]
[1763650455024,0.21972515,91023.0,91016.0,0.01098707]
[1763650455225,0.21972458,91024.0,91021.0,0.03294929]
[1763650455458,0.323,91046.0,91029.0,0.01098551]
[1763650455657,0.01098333,91047.0,91036.0,0.02196282]
[1763650455658,0.21968267,91041.0,91036.0,0.02196282]
[1763650455892,0.22345018,91038.0,91036.0,0.02196282]
[1763650456143,0.01098394,91042.0,91036.0,0.02196282]
[1763650456144,0.01185,91048.0,91044.0,0.21967267]
[1763650456454,0.00376,91041.0,91039.0,0.21968606]
[1763650457117,0.00376,91041.0,91035.0,0.01098478]
[1763650457118,0.02346,91040.0,91022.0,0.07815058]
[1763650457335,0.21968014,91042.0,91040.0,0.02196282]
[1763650457766,0.01098382,91043.0,91040.0,0.02196282]
[1763650457982,0.24313882,91042.0,91040.0,0.02196282]
[1763650458202,0.0109849,91034.0,91025.0,0.2197196]
[1763650458415,0.01098418,91040.0,91028.0,0.21971117]
[1763650458416,0.21970385,91032.0,91028.0,0.21971117]
[1763650458660,0.21970385,91032.0,91026.0,0.23070173]
[1763650458873,0.21970835,91030.0,91027.0,0.01098575]
[1763650459087,0.01098514,91032.0,90990.0,0.45960516]
[1763650459303,0.02847,91022.0,91017.0,0.02196282]
[1763650459515,0.01561,91022.0,91018.0,0.01098683]
[1763650459727,0.01662,91018.0,90997.0,0.01098937]
[1763650459938,0.01662,91018.0,90989.0,0.33949993]
[1763650459939,0.21974399,91015.0,91014.0,0.02196282]
[1763650460158,0.21977055,91004.0,91003.0,0.02196282]
[1763650460374,0.21976847,91005.0,91003.0,0.02196282]
[1763650460375,0.21976848,91005.0,91003.0,0.02196282]
[1763650460584,0.04008,91004.0,90986.0,0.23080326]
[1763650460802,0.02346,91004.0,91003.0,0.02196282]
[1763650460973,0.21976911,91005.0,91003.0,0.02196282]
[1763650461420,0.02346,91004.0,90993.0,0.01098985]
[1763650461592,0.23075326,91007.0,91003.0,0.02196282]
[1763650461792,0.01098828,91006.0,91003.0,0.02196282]
[1763650462174,0.2197684,91005.0,91003.0,0.02196282]
[1763650462383,0.23075668,91006.0,91003.0,0.02196282]
[1763650462384,0.21976675,91006.0,91003.0,0.02196282]
[1763650462590,0.21977055,91004.0,91003.0,0.02196282]
[1763650462793,0.00376,91005.0,91003.0,0.02196282]
[1763650462968,0.00376,91005.0,91003.0,0.24173522]
[1763650463637,0.02346,91039.0,91019.0,0.01098671]
[1763650463834,0.02346,91039.0,91003.0,0.02196282]
[1763650463835,0.01185,91024.0,91022.0,0.21972572]
[1763650464039,0.00376,91023.0,91022.0,0.219726]
[1763650464215,0.00376,91023.0,91021.0,0.23071328]
[1763650464421,0.02660821,91032.0,91029.0,0.01098551]
[1763650464629,0.0109849,91034.0,91020.0,0.02196282]
[1763650464832,0.01185,91022.0,91021.0,0.02196282]
[1763650465238,0.02722,91031.0,91025.0,0.01098599]
[1763650465239,0.00376,91031.0,91025.0,0.01098599]
[1763650465441,0.00376,91031.0,91023.0,0.01098623]
[1763650465442,0.23069316,91030.0,91023.0,0.01098623]
[1763650465644,0.02746377,91029.0,91028.0,0.21971261]
[1763650465870,0.00376,91031.0,91023.0,0.00498623]
[1763650466087,0.00376,91031.0,91004.0,0.1474]
[1763650466088,0.21972051,91025.0,91013.0,0.01098744]
[1763650466316,0.21972051,91025.0,91010.0,0.57665738]
[1763650466317,0.00376,91031.0,91029.0,0.21970959]
[1763650466742,0.00376,91031.0,91028.0,0.01098563]
[1763650466952,0.00376,91031.0,91026.0,0.01098587]
[1763650467179,0.00376,91031.0,91029.0,0.21970995]
[1763650467945,0.00376,91031.0,91028.0,0.01098563]
[1763650468142,0.00376,91031.0,91028.0,0.23069802]
[1763650468344,0.00376,91031.0,91010.0,0.56566958]
[1763650468345,0.01474526,91031.0,91015.0,0.01098719]
[1763650468579,0.01098683,91018.0,90998.0,0.01098925]
[1763650468806,0.01098756,91012.0,91003.0,0.03295146]
[1763650469123,0.00376,91019.0,91016.0,0.01098707]
[1763650469326,0.00376,91019.0,91014.0,0.01098732]
[1763650469547,0.01098756,91012.0,90999.0,0.01098913]
[1763650469789,0.01098756,91012.0,91001.0,0.01098889]
[1763650470003,0.00376,91019.0,91018.0,0.21973675]
[1763650470196,0.00376,91019.0,91017.0,0.21973903]
[1763650470426,0.00376,91019.0,91010.0,0.0109878]
[1763650470427,0.01098707,91016.0,90996.0,0.2197895]
[1763650470543,0.01098732,91014.0,90996.0,0.23077883]
[1763650470753,0.01662,91004.0,91002.0,0.21977531]
[1763650470948,0.00376,91019.0,90991.0,0.01099009]
[1763650470949,0.02346,91030.0,91014.0,0.01098732]
[1763650471153,0.02346,91030.0,91019.0,0.21973388]
[1763650471360,0.02346,91030.0,91017.0,0.25268688]
[1763650471361,0.00376,91020.0,91017.0,0.25268688]
[1763650471674,0.00376,91020.0,91018.0,0.21973638]
[1763650472276,0.01098406,91041.0,91017.0,0.28015307]
[1763650472277,0.01136,91055.0,91041.0,0.01098406]
[1763650472525,0.00376,91048.0,91046.0,0.2196682]
[1763650472727,0.02274,91065.0,91053.0,0.01098261]
[1763650472939,0.01185,91073.0,91070.0,0.01098056]
[1763650473142,0.00376,91072.0,91067.0,0.01098092]
[1763650473370,0.21961018,91071.0,91067.0,0.01098092]
[1763650473558,0.00376,91072.0,91070.0,0.21960913]
[1763650473762,0.00376,91072.0,91070.0,0.21960991]
[1763650473983,0.00375754,91071.0,91037.0,0.07837506]
[1763650474153,0.01097923,91081.0,91071.0,0.01098044]
[1763650474355,0.01097923,91081.0,91063.0,0.23060956]
[1763650474556,0.01512,91083.0,91061.0,0.01098164]
[1763650474557,0.21960873,91072.0,91061.0,0.01098164]
[1763650474762,0.21959682,91076.0,91075.0,0.02196282]
[1763650474993,0.21962586,91064.0,91061.0,0.02196282]
[1763650475194,0.21962976,91063.0,91061.0,0.02196282]
[1763650475374,0.01097959,91078.0,91061.0,0.02196282]
[1763650475675,0.02334,91088.0,91067.0,0.01098092]
[1763650475885,0.24701787,91087.0,91079.0,0.02196282]
[1763650476097,0.21958678,91081.0,91079.0,0.02196282]
[1763650476339,0.01137815,91090.0,91080.0,0.01097935]
[1763650476340,0.00376,91083.0,91080.0,0.01097935]
[1763650476536,0.00376,91083.0,91080.0,0.23056469]
[1763650476706,0.00376,91083.0,91081.0,0.21958311]
[1763650477118,0.00376,91083.0,91079.0,0.02196282]
[1763650477323,0.21958574,91081.0,91079.0,0.02196282]
[1763650477552,0.22333998,91083.0,91079.0,0.02196282]
[1763650477753,0.00376,91083.0,91081.0,0.21958267]
[1763650477956,0.0004,91090.0,91089.0,0.21956547]
[1763650478417,0.0004,91090.0,91079.0,0.02196282]
[1763650478619,0.0004,91090.0,91088.0,0.21956683]
[1763650478818,0.0004,91090.0,91086.0,0.01097863]
[1763650479025,0.21956928,91088.0,91085.0,0.01097875]
[1763650479232,0.0004,91090.0,91088.0,0.21956606]
[1763650479645,0.0004,91090.0,91089.0,0.04720718]
[1763650479812,0.0004,91090.0,91089.0,0.01620718]
[1763650480054,0.00471577,91090.0,91089.0,0.01620718]
[1763650481041,0.00471577,91090.0,91071.0,0.01098044]
[1763650481207,0.0004,91090.0,91085.0,0.01097875]
[1763650481418,0.0004,91090.0,91082.0,0.01097911]
[1763650481419,0.21956547,91089.0,91082.0,0.01097911]
[1763650481786,0.0004,91090.0,91088.0,0.21956754]
[1763650482114,0.0004,91090.0,91087.0,0.01097851]
[1763650482329,0.0004,91090.0,91084.0,0.01097887]
[1763650482610,0.0004,91090.0,91081.0,0.01097923]
[1763650482611,0.21957113,91087.0,91081.0,0.01097923]
[1763650482818,0.0004,91090.0,91084.0,0.01097887]
[1763650482819,0.21996389,91090.0,91084.0,0.01097887]
[1763650483035,0.21996389,91090.0,91086.0,0.01097863]
[1763650483036,0.02744568,91089.0,91086.0,0.01097863]
[1763650483250,0.0004,91090.0,91088.0,0.21956789]
[1763650483484,0.0004,91090.0,91087.0,0.01097851]
[1763650483714,0.0004,91090.0,91079.0,0.5876324]
[1763650483941,0.21957643,91085.0,91080.0,0.01097935]
[1763650484147,0.01097827,91089.0,91080.0,0.01097935]
[1763650484148,0.2195801,91083.0,91080.0,0.01097935]
[1763650484357,0.2195703,91087.0,91080.0,0.01097935]
[1763650484563,0.01097827,91089.0,91079.0,0.02196282]
[1763650484803,0.01097827,91089.0,91060.0,0.56566958]
[1763650484804,0.01609,91080.0,91060.0,0.56566958]
[1763650485040,0.01609,91072.0,91061.0,0.24159423]
[1763650485285,0.01137815,91090.0,91073.0,0.0109802]
[1763650485518,0.01137815,91090.0,91087.0,0.02196282]
[1763650485519,0.21956851,91088.0,91087.0,0.02196282]
[1763650485740,0.22332628,91089.0,91087.0,0.02196282]
[1763650485970,0.01609,91088.0,91087.0,0.02196282]
[1763650486181,0.00376,91089.0,91088.0,0.21956789]
[1763650486751,0.00376,91089.0,91087.0,0.02196282]
[1763650487138,0.22332721,91089.0,91087.0,0.00596282]
[1763650487339,0.00425702,91088.0,91087.0,0.00596282]
[1763650487594,0.00425702,91088.0,91071.0,0.01098044]
[1763650487790,0.22332684,91089.0,91087.0,0.02196282]
[1763650488018,0.00376,91089.0,91087.0,0.02196282]
[1763650488219,0.00376,91089.0,91088.0,0.21956789]
[1763650488620,0.00376,91089.0,91087.0,0.02196282]
[1763650488797,0.22332667,91089.0,91087.0,0.02196282]
[1763650489017,0.00376,91089.0,91087.0,0.02196282]
[1763650489362,0.00376,91089.0,91078.0,0.02196282]
[1763650489573,0.00376,91089.0,91078.0,0.05755711]
[1763650489780,0.23128958,91079.0,91078.0,0.02196282]
[1763650489989,0.0117,91079.0,91078.0,0.02196282]
[1763650490213,0.27071958,91079.0,91078.0,0.02196282]
[1763650490435,0.27071958,91079.0,91063.0,0.0109814]
[1763650490436,0.07963657,91079.0,91063.0,0.0109814]
[1763650490647,0.01473959,91078.0,91075.0,0.02196282]
[1763650490858,0.2195944,91077.0,91075.0,0.02196282]
[1763650491062,0.21959528,91077.0,91075.0,0.02196282]
[1763650491295,0.01098008,91074.0,91061.0,0.03294446]
[1763650491513,0.21962482,91065.0,91061.0,0.02196282]
[1763650491734,0.21961433,91069.0,91065.0,0.23060411]
[1763650491942,0.21961536,91069.0,91067.0,0.01098092]
[1763650492153,0.01098008,91074.0,91060.0,0.01098177]
[1763650492345,0.01098008,91074.0,91066.0,0.01098104]
[1763650492646,0.21959973,91075.0,91069.0,0.01098068]
[1763650492927,0.01473959,91078.0,91065.0,0.01098116]
[1763650493137,0.01473959,91078.0,91050.0,0.56566958]
[1763650493138,0.00378693,91072.0,91069.0,0.01098068]
[1763650493349,0.21962575,91065.0,91059.0,0.01098189]
[1763650493559,0.21962575,91065.0,91050.0,0.56566958]
[1763650493560,0.01097984,91076.0,91065.0,0.2306043]
[1763650493769,0.21960758,91072.0,91066.0,0.01098104]
[1763650493976,0.21962878,91063.0,91059.0,0.01098189]
[1763650494184,0.21962063,91067.0,91064.0,0.01098128]
[1763650494392,0.21962112,91066.0,91063.0,0.18960932]
[1763650494597,0.21961128,91070.0,91066.0,0.01098104]
[1763650494807,0.21961146,91070.0,91067.0,0.23059877]
[1763650495019,0.21961146,91070.0,91066.0,0.01098104]
[1763650495020,0.00376,91078.0,91062.0,0.02525895]
[1763650495228,0.01473959,91078.0,91075.0,0.02196282]
[1763650495437,0.21959682,91076.0,91075.0,0.02196282]
[1763650495644,0.23568682,91076.0,91075.0,0.02196282]
[1763650496060,0.25902682,91076.0,91075.0,0.02196282]
[1763650496910,0.25902682,91076.0,91054.0,0.21964906]
[1763650496911,0.21963058,91062.0,91051.0,0.1474]
[1763650497130,0.00376,91067.0,91056.0,0.01098225]
[1763650497340,0.02267947,91079.0,91068.0,0.2305959]
[1763650497341,0.00376,91070.0,91068.0,0.2305959]
[1763650497553,0.00376,91070.0,91069.0,0.21961369]
[1763650497780,0.00376,91070.0,91068.0,0.2305959]
[1763650497998,0.0117,91079.0,91076.0,0.01097984]
[1763650498213,0.00376,91075.0,91066.0,0.01098104]
[1763650498426,0.0109802,91073.0,91061.0,0.02196282]
[1763650498640,0.23572058,91062.0,91061.0,0.02196282]
[1763650499306,0.01609,91062.0,91061.0,0.02196282]
[1763650499534,0.02334,91085.0,91074.0,0.01098008]
[1763650499761,0.0117,91087.0,91086.0,0.21957271]
[1763650499993,0.0117,91087.0,91078.0,0.02196282]
[1763650499994,0.00376,91084.0,91078.0,0.02196282]
[1763650500245,0.00376,91084.0,91081.0,0.01097923]
[1763650500480,0.0004,91090.0,91078.0,0.02196282]
[1763650500704,0.21996401,91090.0,91089.0,0.02196282]
[1763650500924,0.0004,91090.0,91089.0,0.02196282]
[1763650501148,0.0004,91090.0,91087.0,0.01097851]
[1763650501374,0.0004,91090.0,91089.0,0.21956547]
[1763650501604,0.0004,91090.0,91089.0,0.23981562]
[1763650502049,0.0004,91090.0,91088.0,0.21956733]
[1763650502270,0.0004,91090.0,91087.0,0.37794608]
[1763650502271,0.0004,91090.0,91087.0,0.1474]
[1763650502489,0.0004,91090.0,91088.0,0.21956789]
[1763650502756,0.0004,91090.0,91087.0,0.37794608]
[1763650502757,0.24335675,91089.0,91087.0,0.1474]
[1763650502969,0.03951,91088.0,91087.0,0.1474]
[1763650503392,0.06695598,91088.0,91079.0,0.02196282]
[1763650503616,0.06695598,91088.0,91071.0,0.01098044]
[1763650503617,0.01572,91080.0,91071.0,0.01098044]
[1763650503860,0.04316839,91080.0,91077.0,0.03294254]
[1763650504088,0.01201,91087.0,91085.0,0.21957406]
[1763650504314,0.0004,91090.0,91089.0,0.21956547]
[1763650506175,0.0004,91090.0,91087.0,0.01097851]
[1763650506380,0.0004,91090.0,91089.0,0.21956547]
[1763650506556,0.0004,91090.0,91089.0,0.25845778]
[1763650507522,0.0004,91090.0,91089.0,0.40585778]
[1763650508180,0.0004,91090.0,91089.0,0.36696547]
[1763650508547,0.0004,91090.0,91089.0,0.21956547]
[1763650509180,0.0004,91090.0,91089.0,0.60595385]
[1763650510246,0.0004,91090.0,91089.0,0.68935385]
[1763650510435,0.0004,91110.0,91109.0,0.54251728]
[1763650510937,0.0004,91110.0,91107.0,0.02196282]
[1763650511074,0.21951728,91109.0,91107.0,0.02196282]
[1763650511278,0.21991755,91110.0,91107.0,0.03293892]
[1763650511279,0.0004,91110.0,91107.0,0.03293892]
[1763650511481,0.0004,91110.0,91107.0,0.02196282]
[1763650511721,0.21951969,91108.0,91107.0,0.02196282]
[1763650511925,0.21951969,91108.0,91077.0,0.02196282]
[1763650511926,0.01097767,91094.0,91077.0,0.02196282]
[1763650512097,0.01097863,91086.0,91077.0,0.02196282]
[1763650512311,0.01097863,91086.0,91040.0,0.10792384]
[1763650512312,0.21963058,91062.0,91040.0,0.71050018]
[1763650512548,0.00376,91062.0,91036.0,0.01098466]
[1763650512741,0.2196547,91052.0,91045.0,0.02196282]
[1763650512964,0.01098345,91046.0,91020.0,0.71050018]
[1763650513163,0.01098309,91049.0,91045.0,0.02196282]
[1763650513164,0.21966431,91049.0,91045.0,0.02196282]
[1763650513338,0.01201,91051.0,91045.0,0.02196282]
[1763650513542,0.03902754,91108.0,91045.0,0.02196282]
[1763650513543,0.01201,91059.0,91056.0,0.23062618]
[1763650513743,0.00376,91058.0,91045.0,0.02196282]
[1763650514039,0.21966817,91047.0,91045.0,0.02196282]
[1763650514459,0.23063647,91053.0,91045.0,0.02196282]
[1763650514460,0.00376,91058.0,91049.0,0.01098309]
[1763650514683,0.00376,91058.0,91055.0,0.01098237]
[1763650514882,0.00376,91058.0,91045.0,0.03294639]
[1763650514996,0.01201,91067.0,91045.0,0.03294639]
[1763650514997,0.21962449,91065.0,91059.0,0.21963621]
[1763650515200,0.01201,91092.0,91089.0,0.01097827]
[1763650515453,0.21952563,91106.0,91098.0,0.01097718]
[1763650515664,0.21952947,91104.0,91091.0,0.01891852]
[1763650515871,0.02419,91110.0,91095.0,0.21955101]
[1763650516091,0.21953392,91103.0,91098.0,0.01097718]
[1763650516298,0.21954281,91099.0,91093.0,0.21955476]
[1763650516537,0.21954281,91099.0,91094.0,0.23052986]
[1763650516875,0.0109755,91112.0,91100.0,0.01097694]
[1763650517015,0.03841552,91109.0,91101.0,0.21953455]
[1763650517220,0.21951969,91108.0,91107.0,0.02196282]
[1763650517422,0.21991688,91110.0,91107.0,0.02196282]
[1763650517423,0.0004,91110.0,91107.0,0.02196282]
[1763650517647,0.21951728,91109.0,91107.0,0.02196282]
[1763650517874,0.21951728,91109.0,91092.0,0.21955595]
[1763650517875,0.21955226,91095.0,91083.0,0.00376]
[1763650518057,0.21955226,91095.0,91084.0,0.01097887]
[1763650518375,0.00437452,91092.0,91086.0,0.01097863]
[1763650518591,0.00437452,91092.0,91090.0,0.21956121]
[1763650518993,0.00437452,91092.0,91089.0,0.21956502]
[1763650519212,0.00437452,91092.0,91089.0,0.01097827]
[1763650519354,0.00437452,91092.0,91086.0,0.01097863]
[1763650519556,0.00437452,91092.0,91088.0,0.01097839]
[1763650519770,0.00437452,91092.0,91084.0,0.21957557]
[1763650519988,0.00437452,91092.0,91090.0,0.2195628]
[1763650520633,0.00437452,91092.0,91077.0,0.00376]
[1763650520852,0.00437452,91092.0,91086.0,0.23055044]
[1763650521067,0.00437452,91092.0,91089.0,0.01097827]
[1763650521267,0.00437452,91092.0,91090.0,0.21956102]
[1763650522345,0.00437452,91092.0,91076.0,0.03294266]
[1763650522549,0.00437452,91092.0,91076.0,0.02196282]
[1763650522766,0.21956981,91088.0,91075.0,0.02196282]
[1763650523147,0.21959682,91076.0,91075.0,0.02196282]
[1763650523337,0.01098032,91072.0,91060.0,0.02196282]
[1763650523512,0.01097996,91075.0,91060.0,0.02196282]
[1763650523513,0.01098044,91071.0,91060.0,0.04941898]
[1763650523713,0.01098044,91071.0,91020.0,0.00999999]
[1763650523714,0.21966844,91047.0,91033.0,0.01098502]
[1763650523865,0.21966844,91047.0,91036.0,0.01098466]
[1763650524064,0.01098213,91057.0,91031.0,0.02572282]
[1763650524065,0.00376,91060.0,91052.0,0.01098273]
[1763650524272,0.21963463,91061.0,91059.0,0.02196282]
[1763650524482,0.21962934,91063.0,91059.0,0.24159866]
[1763650524684,0.03476947,91079.0,91059.0,0.02196282]
[1763650524882,0.21958592,91081.0,91077.0,0.01097972]
[1763650525061,0.02379,91088.0,91074.0,0.0329429]
[1763650525062,0.21959811,91076.0,91074.0,0.02196282]
[1763650525303,0.01097718,91098.0,91084.0,0.01097887]
[1763650525568,0.01097815,91090.0,91080.0,0.01097935]
[1763650525736,0.21956547,91089.0,91088.0,0.02196282]
[1763650525958,0.21958357,91082.0,91078.0,0.01097959]
[1763650526121,0.21957422,91086.0,91084.0,0.02196282]
[1763650526452,0.01473839,91088.0,91085.0,0.02196282]
[1763650526713,0.02379,91102.0,91085.0,0.02196282]
[1763650526714,0.0004,91110.0,91085.0,0.24153529]
[1763650526873,0.0004,91110.0,91108.0,0.21951913]
[1763650527024,0.0004,91110.0,91104.0,0.01097646]
[1763650527227,0.0004,91110.0,91102.0,0.02196282]
[1763650527430,0.0004,91110.0,91105.0,0.01097634]